Departmental family,Entity,Date Paid,Expense type,Expense Area,Supplier,Transaction Number,Amount,Description,Supplier Type,Expenditure Type
UK Statistics Authority,Office for National Statistics,01-May-18,Surveys,National Accounts and Economic Statistics,Kantar Public,83798,"1,710.00", Information Management Services,SME,Programme
UK Statistics Authority,Office for National Statistics,01-May-18,Surveys,National Accounts and Economic Statistics,Kantar Public,83798,"187,728.90", Information Management Services,SME,Programme
UK Statistics Authority,Office for National Statistics,01-May-18,Surveys,Public Policy Analysis,Kantar Public,83798,"379,994.40", Information Management Services,SME,Programme
UK Statistics Authority,Office for National Statistics,01-May-18,IT Purchases > 2K,Digital Services and Technology,SCC,83809,"379,089.00", Information Management Services,Large,Programme
UK Statistics Authority,Office for National Statistics,01-May-18,Office Furniture,Digital Services and Technology,The Senator Group,83816,"33,803.86", Furniture Data block Newport,Large,Programme
UK Statistics Authority,Office for National Statistics,01-May-18,IT Contractual Services,Digital Services and Technology,QA Ltd,83821,"189,390.00", Information Management Services,Large,Programme
UK Statistics Authority,Office for National Statistics,01-May-18,ICT Software Costs,Public Population and Policy,Insight Direct,83823,"81,277.26", Statistical Services,Large,Programme
UK Statistics Authority,Office for National Statistics,01-May-18,ICT Outsourcing and Maintenance Support,Digital Services and Technology,Equiniti-TopLevel,83838,"36,879.36", Information Management Services,Large,Programme
UK Statistics Authority,Office for National Statistics,02-May-18,ICT Outsourcing and Maintenance Support,Digital Services and Technology,RSM Partners Ltd,84290,"52,200.00", Information Management Services,SME,Programme
UK Statistics Authority,Office for National Statistics,02-May-18,2017/18 Quarter 4 VAT Return,"Finance, Audit and Business Development",HM Revenue & Customs,84295,"1,206,818.30", 2017/18 Quarter 4 VAT Return,Large,Programme
UK Statistics Authority,Office for National Statistics,02-May-18,Travel and Subsistence,"Finance, Audit and Business Development",Redfern Travel,84301,"58,091.38", Travel and Accommodation Booking Service ,SME,Programme
UK Statistics Authority,Office for National Statistics,02-May-18,Furniture Costing > 2K,People and Business Services,The Senator Group,84303,"26,325.36", Smart Working Furnishings London,Large,Programme
UK Statistics Authority,Office for National Statistics,02-May-18,Office Furniture,Public Population and Policy Transformation,The Senator Group,84303,"6,348.00", Smart Working Furnishings Newport,Large,Programme
UK Statistics Authority,Office for National Statistics,03-May-18,ICT Software Costs,Digital Services and Technology,IBM United Kingdom Ltd,84323,"396,000.00", Lotus Note Licences,Large,Programme
UK Statistics Authority,Office for National Statistics,03-May-18,Consultancy,Public Population and Policy - Operations,BSI,84335,"10,216.78", Information Management Services,Large,Programme
UK Statistics Authority,Office for National Statistics,03-May-18,ICT Outsourcing and Maintenance Support,Digital Services and Technology,BSI,84335,"28,693.19", Information Management Services,Large,Programme
UK Statistics Authority,Office for National Statistics,04-May-18,IT Contractual Services,Digital Services and Technology,Mango Solutions,84652,"27,456.00", Information Management Services,SME,Programme
UK Statistics Authority,Office for National Statistics,04-May-18,ICT Outsourcing and Maintenance Support,Digital Services and Technology,Crown Hosting Data Centres Limited,84653,"16,951.29", Cloud Services,SME,Programme
UK Statistics Authority,Office for National Statistics,04-May-18,ICT Outsourcing and Maintenance Support,Digital Services and Technology,Crown Hosting Data Centres Limited,84653,"16,574.93", Cloud Services,SME,Programme
UK Statistics Authority,Office for National Statistics,04-May-18,Telecommunications,Digital Services and Technology,BT Global Services,84656,"45,264.00", Information Management Services,Large,Programme
UK Statistics Authority,Office for National Statistics,04-May-18,Telecommunications,Public Population and Policy - Operations,BT Global Services,84656,"11,990.58", Information Management Services,Large,Programme
UK Statistics Authority,Office for National Statistics,04-May-18,Exp - Purchase Of Goods/Servcies - Postage,Public Population and Policy - Operations,UK Mail,84658,"25,455.59", Outgoing Post,Large,Programme
UK Statistics Authority,Office for National Statistics,04-May-18,Childcare Services,"Finance, Audit and Business Development",Computershare Voucher Services,84665,"44,188.61", Childcare Vouchers ,Large,Programme
UK Statistics Authority,Office for National Statistics,08-May-18,ICT Outsourcing and Maintenance Support,People and Business Services,LinkedIn,84680,"52,311.20", Recruitment Licenses,Large,Programme
UK Statistics Authority,Office for National Statistics,08-May-18,Capaital Major Works > 25K,People and Business Services,Hawkings Cladding Ltd,84683,"103,785.12", Newport Cladding ,SME,Programme
UK Statistics Authority,Office for National Statistics,08-May-18,Major Works Over 25K,People and Business Services,Hawkings Cladding Ltd,84683,"18,315.02", Newport Cladding ,SME,Programme
UK Statistics Authority,Office for National Statistics,08-May-18,Surveys,National Accounts and Economic Statistics,IFF Research,84684,"61,272.00", Statisitical Services,Large,Programme
UK Statistics Authority,Office for National Statistics,09-May-18,Contractors,"Methods, Data and Research",Concept Information Technology Ltd T/A Concept Resourcing,85022,"5,929.36", Information Management Services,Large,Programme
UK Statistics Authority,Office for National Statistics,09-May-18,IT Contractual Services,Digital Services and Technology,Concept Information Technology Ltd T/A Concept Resourcing,85022,"8,100.00", Information Management Services,Large,Programme
UK Statistics Authority,Office for National Statistics,09-May-18,Short-Term Contract and Agency Staff,Economic Statistics Transformation,Concept Information Technology Ltd T/A Concept Resourcing,85022,804.05, Information Management Services,Large,Programme
UK Statistics Authority,Office for National Statistics,09-May-18,Short-Term Contract and Agency Staff,"Methods, Data and Research",Concept Information Technology Ltd T/A Concept Resourcing,85022,"1,835.28", Information Management Services,Large,Programme
UK Statistics Authority,Office for National Statistics,09-May-18,Short-Term Contract and Agency Staff,"Methods, Data and Research",Concept Information Technology Ltd T/A Concept Resourcing,85022,"4,658.81", Information Management Services,Large,Programme
UK Statistics Authority,Office for National Statistics,09-May-18,Short-Term Contract and Agency Staff,National Accounts and Economic Statistics,Concept Information Technology Ltd T/A Concept Resourcing,85022,850.56, Information Management Services,Large,Programme
UK Statistics Authority,Office for National Statistics,09-May-18,Short-Term Contract and Agency Staff,National Accounts and Economic Statistics,Concept Information Technology Ltd T/A Concept Resourcing,85022,"2,983.61", Information Management Services,Large,Programme
UK Statistics Authority,Office for National Statistics,09-May-18,Short-Term Contract and Agency Staff,National Accounts and Economic Statistics,Concept Information Technology Ltd T/A Concept Resourcing,85022,"3,933.84", Information Management Services,Large,Programme
UK Statistics Authority,Office for National Statistics,09-May-18,Telecommunications,Digital Services and Technology,BT Global Services,85026,"35,191.89", Information Management Services,Large,Programme
UK Statistics Authority,Office for National Statistics,09-May-18,Capitalised IT Consultancy,"Finance, Audit and Business Development",Phoenix Software Ltd,85027,"26,880.00", Information Management Services,SME,Programme
UK Statistics Authority,Office for National Statistics,10-May-18,ICT Outsourcing and Maintenance Support,Digital Services and Technology,SCC,85259,"4,395.60", Information Management Services,Large,Programme
UK Statistics Authority,Office for National Statistics,10-May-18,IT Purchases > 2K,Digital Services and Technology,SCC,85259,"305,953.20", Information Management Services,Large,Programme
UK Statistics Authority,Office for National Statistics,10-May-18,Postage,Digital Services and Technology,SCC,85259,390.48, Information Management Services,Large,Programme
UK Statistics Authority,Office for National Statistics,10-May-18,Travel and Subsistence,"Finance, Audit and Business Development",Redfern Travel,85260,"44,173.99", Travel and Accommodation Booking Service ,SME,Programme
UK Statistics Authority,Office for National Statistics,11-May-18,ICT Outsourcing and Maintenance Support,Digital Services and Technology,SCC,85275,"26,132.38", Information Management Services,Large,Programme
UK Statistics Authority,Office for National Statistics,11-May-18,Procurement Card,"Finance, Audit and Business Development",Royal Bank of Scotland,85279,"67,506.08", Multiple Procurement Card Purchases  ,Large,Programme
UK Statistics Authority,Office for National Statistics,11-May-18,Stationery,"Finance, Audit and Business Development",Royal Bank of Scotland,85279,"10,134.40", Multiple Procurement Card Purchases Stationery,Large,Programme
UK Statistics Authority,Office for National Statistics,14-May-18,IT Contractual Services,Digital Services and Technology,Mango Solutions,85593,"138,255.00", Information Management Services,SME,Programme
UK Statistics Authority,Office for National Statistics,14-May-18,IT Contractual Services,Digital Services and Technology,Methods Digital Ltd,85605,"66,600.00", Information Management Services,Large,Programme
UK Statistics Authority,Office for National Statistics,14-May-18,IT Contractual Services,Digital Services and Technology,Methods Digital Ltd,85605,"15,300.00", Information Management Services,Large,Programme
UK Statistics Authority,Office for National Statistics,14-May-18,IT Contractual Services,Digital Services and Technology,Methods Digital Ltd,85605,"18,000.00", Information Management Services,Large,Programme
UK Statistics Authority,Office for National Statistics,14-May-18,IT Contractual Services,Digital Services and Technology,Methods Digital Ltd,85605,"30,750.00", Information Management Services,Large,Programme
UK Statistics Authority,Office for National Statistics,14-May-18,Contractors,Digital Services and Technology,Parity Resources Limited,85610,"19,063.80", Information Management Services,Large,Programme
UK Statistics Authority,Office for National Statistics,14-May-18,Contractors,Economic Statistics - Transformation,Parity Resources Limited,85610,"10,950.84", Information Management Services,Large,Programme
UK Statistics Authority,Office for National Statistics,14-May-18,Contractors,Economic Statistics - Transformation,Parity Resources Limited,85610,"8,971.20", Information Management Services,Large,Programme
UK Statistics Authority,Office for National Statistics,14-May-18,Contractors,"Finance, Audit and Business Development",Parity Resources Limited,85610,"10,893.60", Information Management Services,Large,Programme
UK Statistics Authority,Office for National Statistics,14-May-18,Contractors,Public Population and Policy - Transformation,Parity Resources Limited,85610,"13,452.00", Information Management Services,Large,Programme
UK Statistics Authority,Office for National Statistics,14-May-18,Contractors,Public Population and Policy - Transformation,Parity Resources Limited,85610,"10,957.68", Information Management Services,Large,Programme
UK Statistics Authority,Office for National Statistics,14-May-18,Short-Term Contract and Agency Staff,Public Population and Policy - Operations,Parity Resources Limited,85610,706.85, Information Management Services,Large,Programme
UK Statistics Authority,Office for National Statistics,14-May-18,IT Management and Change,Digital Services and Technology,Total Computer Networks Ltd,85612,"28,545.00", Computers and Peripherals,Large,Programme
UK Statistics Authority,Office for National Statistics,15-May-18,ICT Outsourcing and Maintenance Support,Data Science Campus,Mango Solutions,85864,"15,006.00", Information Management Services,SME,Programme
UK Statistics Authority,Office for National Statistics,15-May-18,ICT Outsourcing and Maintenance Support,Data Science Campus,Mango Solutions,85864,"14,400.00", Information Management Services,SME,Programme
UK Statistics Authority,Office for National Statistics,15-May-18,Incentive Payments,Public Population and Policy - Operations,Park Retail Ltd,85865,"17,058.03", Social Surveys Incentive Vouchers,Large,Programme
UK Statistics Authority,Office for National Statistics,15-May-18,Incentive Payments,Public Population and Policy - Operations,Park Retail Ltd,85865,"3,863.27", Social Surveys Incentive Vouchers,Large,Programme
UK Statistics Authority,Office for National Statistics,15-May-18,Incentive Payments,Public Population and Policy - Operations,Park Retail Ltd,85865,"6,011.20", Social Surveys Incentive Vouchers,Large,Programme
UK Statistics Authority,Office for National Statistics,16-May-18,IT Contractual Services,Digital Services and Technology,E Synergy Solutions,85876,"12,240.00", Information Management Services ,SME,Programme
UK Statistics Authority,Office for National Statistics,16-May-18,IT Contractual Services,Digital Services and Technology,E Synergy Solutions,85876,"35,724.00", Information Management Services ,SME,Programme
UK Statistics Authority,Office for National Statistics,16-May-18,Surveys,"Methods, Data and Research",University of Southampton,85880,"64,360.80", Statistical services,SME,Programme
UK Statistics Authority,Office for National Statistics,16-May-18,Travel and Subsistence,"Finance, Audit and Business Development",Redfern Travel,85882,"41,722.85", Travel and Accommodation Booking Service ,SME,Programme
UK Statistics Authority,Office for National Statistics,16-May-18,ICT Outsourcing and Maintenance Support,Digital Services and Technology,Equiniti Limited,85883,"10,547.34", Information Management Services,Large,Programme
UK Statistics Authority,Office for National Statistics,16-May-18,ICT Outsourcing and Maintenance Support,Digital Services and Technology,Equiniti Limited,85883,"36,665.46", Information Management Services,Large,Programme
UK Statistics Authority,Office for National Statistics,16-May-18,Contractors,Digital Services and Technology,Certes Computing Ltd,85885,"11,003.28", Information Management Services,SME,Programme
UK Statistics Authority,Office for National Statistics,16-May-18,Contractors,Digital Services and Technology,Certes Computing Ltd,85885,"14,991.72", Information Management Services,SME,Programme
UK Statistics Authority,Office for National Statistics,16-May-18,Contractors,Digital Services and Technology,Certes Computing Ltd,85885,"7,368.19", Information Management Services,SME,Programme
UK Statistics Authority,Office for National Statistics,16-May-18,Contractors,Economic Statistics - Transformation,Certes Computing Ltd,85885,"11,571.60", Information Management Services,SME,Programme
UK Statistics Authority,Office for National Statistics,16-May-18,Contractors,Public Population and Policy - Transformation,Certes Computing Ltd,85885,"10,319.96", Information Management Services,SME,Programme
UK Statistics Authority,Office for National Statistics,16-May-18,ICT Outsourcing and Maintenance Support,Digital Services and Technology,Qa Ltd,85890,"37,200.00", Information Management Services,Large,Programme
UK Statistics Authority,Office for National Statistics,16-May-18,IT Contractual Services,Digital Services and Technology,QA Ltd,85890,"186,675.00", Information Management Services,Large,Programme
UK Statistics Authority,Office for National Statistics,16-May-18,Contractors,Digital Services and Technology,Parity Resources Limited,85892,"11,534.40", Information Management Services,Large,Programme
UK Statistics Authority,Office for National Statistics,16-May-18,Contractors,People and Business Services,Parity Resources Limited,85892,"13,392.72", Information Management Services,Large,Programme
UK Statistics Authority,Office for National Statistics,16-May-18,Contractors,Public Population and Policy - Transformation,Parity Resources Limited,85892,"9,259.56", Information Management Services,Large,Programme
UK Statistics Authority,Office for National Statistics,16-May-18,Contractors,Public Population and Policy - Transformation,Parity Resources Limited,85892,"9,612.00", Information Management Services,Large,Programme
UK Statistics Authority,Office for National Statistics,16-May-18,Short-Term Contract and Agency Staff,People and Business Services,Parity Resources Limited,85892,"6,889.15", Information Management Services,Large,Programme
UK Statistics Authority,Office for National Statistics,17-May-18,ICT Outsourcing and Maintenance Support,Digital Services and Technology,Crown Hosting Data Centres Limited,86341,"29,200.44", Cloud Services,SME,Programme
UK Statistics Authority,Office for National Statistics,17-May-18,Facilities Management Contract Payments,"Finance, Audit and Business Development",Vinci Construction UK Limited,86343,"74,358.99", Newport Major Works ,Large,Programme
UK Statistics Authority,Office for National Statistics,17-May-18,Major Works Over 25K,People and Business Services,Vinci Construction UK Limited,86343,"6,251.37", Newport Major Works ,Large,Programme
UK Statistics Authority,Office for National Statistics,17-May-18,Major Works Over 25K,People and Business Services,Vinci Construction UK Limited,86343,"53,944.89", Titchfield Major Works ,Large,Programme
UK Statistics Authority,Office for National Statistics,17-May-18,Permanent UK Staff - Basic Salary,Electronic Data Collection,Cabinet Office,86364,"23,428.06", Fast Stream Recruitment Fees,Large,Programme
UK Statistics Authority,Office for National Statistics,17-May-18,Permanent UK Staff - Basic Salary,"Finance, Audit and Business Development",Cabinet Office,86364,"23,428.05", Fast Stream Recruitment Fees,Large,Programme
UK Statistics Authority,Office for National Statistics,18-May-18,Consultancy,Public Population and Policy - Operations,Deloitte,86376,"150,112.80", Information Management Services,SME,Programme
UK Statistics Authority,Office for National Statistics,18-May-18,Postage,"Finance, Audit and Business Development",Pitney Bowes Ltd,30000872,"35,693.15", Franking Machine Standing Balance,Large,Programme
UK Statistics Authority,Office for National Statistics,21-May-18,IT Contractual Services,Digital Services and Technology,E Synergy Solutions,86752,"36,904.20", Information Management Services ,SME,Programme
UK Statistics Authority,Office for National Statistics,21-May-18,Contractors,Policy and Communication,Parity Resources Limited,86760,"23,246.64", Information Management Services,Large,Programme
UK Statistics Authority,Office for National Statistics,21-May-18,Contractors,Public Population and Policy - Operations,Parity Resources Limited,86760,"9,360.00", Information Management Services,Large,Programme
UK Statistics Authority,Office for National Statistics,21-May-18,Short-Term Contract and Agency Staff,National Accounts and Economic Statistics,Parity Resources Limited,86760,"2,314.14", Information Management Services,Large,Programme
UK Statistics Authority,Office for National Statistics,21-May-18,Short-Term Contract and Agency Staff,People and Business Services,Parity Resources Limited,86760,"2,476.75", Information Management Services,Large,Programme
UK Statistics Authority,Office for National Statistics,21-May-18,Short-Term Contract and Agency Staff,People and Business Services,Parity Resources Limited,86760,410.14, Information Management Services,Large,Programme
UK Statistics Authority,Office for National Statistics,21-May-18,Short-Term Contract and Agency Staff,Public Population and Policy - Transformation,Parity Resources Limited,86760,38.87, Information Management Services,Large,Programme
UK Statistics Authority,Office for National Statistics,21-May-18,Short-Term Contract and Agency Staff,Public Population and Policy - Transformation,Parity Resources Limited,86760,"4,076.12", Information Management Services,Large,Programme
UK Statistics Authority,Office for National Statistics,22-May-18,Consultancy,"Finance, Audit and Business Development",Certus Solutions Consulting Services Ltd,86928,"66,906.04", Information Management Services,SME,Programme
UK Statistics Authority,Office for National Statistics,22-May-18,ICT Outsourcing and Maintenance Support,Digital Services and Technology,Crown Hosting Data Centres Limited,86929,"31,311.04", Cloud Services,SME,Programme
UK Statistics Authority,Office for National Statistics,22-May-18,ICT Outsourcing and Maintenance Support,Digital Services and Technology,Crown Hosting Data Centres Limited,86929,139.06, Cloud Services,SME,Programme
UK Statistics Authority,Office for National Statistics,23-May-18,ICT Outsourcing and Maintenance Support,Digital Services and Technology,SCC,86942,"15,553.88", Information Management Services,Large,Programme
UK Statistics Authority,Office for National Statistics,23-May-18,IT Purchases > 2K,Digital Services and Technology,SCC,86942,"105,658.83", Information Management Services,Large,Programme
UK Statistics Authority,Office for National Statistics,23-May-18,Travel and Subsistence,"Finance, Audit and Business Development",Redfern Travel,86943,"60,842.41", Travel and Accommodation Booking Service ,SME,Programme
UK Statistics Authority,Office for National Statistics,24-May-18,ICT Outsourcing and Maintenance Support,Digital Services and Technology,Oracle Corporation UK Ltd,87383,"1,255,908.30", Licenses and Support ,Large,Programme
UK Statistics Authority,Office for National Statistics,24-May-18,IT Purchases > 2K,Digital Services and Technology,Vodafone Corporate Ltd,87384,"96,010.51", Information Management Services,Large,Programme
UK Statistics Authority,Office for National Statistics,24-May-18,Contractors,Digital Services and Technology,E Synergy Solutions,87386,"25,800.00", Information Management Services ,SME,Programme
UK Statistics Authority,Office for National Statistics,24-May-18,Contractors,Digital Services and Technology,E Synergy Solutions,87386,"15,600.00", Information Management Services ,SME,Programme
UK Statistics Authority,Office for National Statistics,24-May-18,IT Contractual Services,Digital Services and Technology,E Synergy Solutions,87386,"2,016.00", Information Management Services ,SME,Programme
UK Statistics Authority,Office for National Statistics,24-May-18,IT Contractual Services,Digital Services and Technology,E Synergy Solutions,87386,"18,000.00", Information Management Services ,SME,Programme
UK Statistics Authority,Office for National Statistics,24-May-18,IT Contractual Services,Digital Services and Technology,E Synergy Solutions,87386,"90,330.00", Information Management Services ,SME,Programme
UK Statistics Authority,Office for National Statistics,24-May-18,IT Contractual Services,Digital Services and Technology,E Synergy Solutions,87386,"42,384.00", Information Management Services ,SME,Programme
UK Statistics Authority,Office for National Statistics,24-May-18,IT Contractual Services,Digital Services and Technology,E Synergy Solutions,87386,"16,200.00", Information Management Services ,SME,Programme
UK Statistics Authority,Office for National Statistics,24-May-18,Consultancy,"Finance, Audit and Business Development",Certus Solutions Consulting Services Ltd,87387,"59,128.13", Information Management Services,SME,Programme
UK Statistics Authority,Office for National Statistics,24-May-18,Contractors,Economic Statistics Transformation,Concept Information Technology Ltd T/A Concept Resourcing,87390,"11,070.00", Information Management Services,Large,Programme
UK Statistics Authority,Office for National Statistics,24-May-18,IT Contractual Services,Digital Services and Technology,Concept Information Technology Ltd T/A Concept Resourcing,87390,"4,800.00", Information Management Services,Large,Programme
UK Statistics Authority,Office for National Statistics,24-May-18,Short-Term Contract and Agency Staff,Economic Statistics Transformation,Concept Information Technology Ltd T/A Concept Resourcing,87390,797.4, Information Management Services,Large,Programme
UK Statistics Authority,Office for National Statistics,24-May-18,Short-Term Contract and Agency Staff,Economic Statistics Transformation,Concept Information Technology Ltd T/A Concept Resourcing,87390,"3,893.98", Information Management Services,Large,Programme
UK Statistics Authority,Office for National Statistics,24-May-18,Short-Term Contract and Agency Staff,National Accounts and Economic Statistics,Concept Information Technology Ltd T/A Concept Resourcing,87390,"7,581.95", Information Management Services,Large,Programme
UK Statistics Authority,Office for National Statistics,24-May-18,Short-Term Contract and Agency Staff,National Accounts and Economic Statistics,Concept Information Technology Ltd T/A Concept Resourcing,87390,"3,787.68", Information Management Services,Large,Programme
UK Statistics Authority,Office for National Statistics,24-May-18,Training and Development,Digital Services and Technology,Capita Business Services Ltd,87394,"38,195.12", Information Management Services,Large,Programme
UK Statistics Authority,Office for National Statistics,24-May-18,ICT Outsourcing and Maintenance Support,Digital Services and Technology,Equiniti Limited,87396,"10,547.34", Information Management Services,Large,Programme
UK Statistics Authority,Office for National Statistics,24-May-18,ICT Outsourcing and Maintenance Support,Digital Services and Technology,Equiniti Limited,87396,"36,665.46", Information Management Services,Large,Programme
UK Statistics Authority,Office for National Statistics,24-May-18,IT Contractual Services,Digital Services and Technology,QA Ltd,87404,"535,836.00", Information Management Services,Large,Programme
UK Statistics Authority,Office for National Statistics,24-May-18,ICT Outsourcing and Maintenance Support,Digital Services and Technology,Insight Direct,87405,"122,059.26", SAS Software Support,Large,Programme
UK Statistics Authority,Office for National Statistics,24-May-18,Training and Development,People and Business Services,Beam Development & Training,87417,"54,134.40", Personal Resilience Training Programme,Large,Programme
UK Statistics Authority,Office for National Statistics,24-May-18,Training and Development,People and Business Services,Beam Development & Training,87417,600, Personal Resilience Training Programme,Large,Programme
UK Statistics Authority,Office for National Statistics,24-May-18,IT Contractual Services,Digital Services and Technology,Cloudwick Technologies UK,87424,"32,760.00", Cloud Services,SME,Programme
UK Statistics Authority,Office for National Statistics,24-May-18,Electricity,People and Business Services,EDF Energy,30000878,"27,052.73", Electricity Charges Newport,Large,Programme
UK Statistics Authority,Office for National Statistics,24-May-18,ICT Outsourcing and Maintenance Support,Digital Services and Technology,Amazon Web Services Inc,30000880,"43,451.94", Web Services,Large,Programme
UK Statistics Authority,Office for National Statistics,24-May-18,ICT Outsourcing and Maintenance Support,Digital Services and Technology,Safari Books Online,30000883,"48,944.04", Enterprise Licenses,Large,Programme
UK Statistics Authority,Office for National Statistics,25-May-18,ICT Software Costs,Digital Services and Technology,Oracle Corporation UK Ltd,87468,"75,795.20", ERP Support,Large,Programme
UK Statistics Authority,Office for National Statistics,25-May-18,Contractors,Digital Services and Technology,E Synergy Solutions,87469,"29,251.50", Information Management Services ,SME,Programme
UK Statistics Authority,Office for National Statistics,25-May-18,IT Contractual Services,Digital Services and Technology,E Synergy Solutions,87469,"46,560.00", Information Management Services ,SME,Programme
UK Statistics Authority,Office for National Statistics,25-May-18,IT Contractual Services,Digital Services and Technology,E Synergy Solutions,87469,"12,036.00", Information Management Services ,SME,Programme
UK Statistics Authority,Office for National Statistics,25-May-18,IT Contractual Services,Digital Services and Technology,E Synergy Solutions,87469,"4,652.11", Information Management Services ,SME,Programme
UK Statistics Authority,Office for National Statistics,25-May-18,ICT Outsourcing and Maintenance Support,Digital Services and Technology,RSM Partners Ltd,87470,"64,374.74", Information Management Services,SME,Programme
Grand Total,,,,,,,,,,
